bitfinex/quotes_BTCUSD_20250403
["timestamp","ask_amount","ask_price","bid_price","bid_amount"]
[1743651091287,0.251088,83636.0,83632.0,0.01943791]
[1743651091582,0.251088,83636.0,83632.0,0.02915497]
[1743651091583,0.251093,83634.0,83632.0,0.02915497]
[1743651092484,0.251093,83634.0,83633.0,0.01943791]
[1743651092689,0.011956,83635.0,83633.0,0.01943791]
[1743651093188,0.011956,83637.0,83633.0,0.02915497]
[1743651093602,0.251087,83636.0,83633.0,0.02915497]
[1743651093798,0.251087,83636.0,83634.0,0.01943791]
[1743651094306,0.011956,83635.0,83634.0,0.02915497]
[1743651098031,0.00404596,83639.0,83636.0,0.239131]
[1743651098274,0.00404596,83639.0,83638.0,0.011956]
[1743651098684,0.00404596,83639.0,83638.0,0.2206116]
[1743651098817,0.00404596,83639.0,83638.0,0.23250413]
[1743651099427,0.00404596,83639.0,83638.0,0.24142981]
[1743651100052,0.251026,83657.0,83650.0,0.011954]
[1743651100255,0.00021456,83651.0,83650.0,0.011954]
[1743651101861,0.00021456,83651.0,83650.0,0.0463343]
[1743651102249,0.00021456,83651.0,83650.0,0.06352585]
[1743651103426,0.00021456,83651.0,83650.0,0.12221118]
[1743651104046,0.00021456,83651.0,83650.0,0.24812069]
[1743651105004,0.00021456,83651.0,83650.0,0.24476104]
[1743651105850,0.00021456,83651.0,83650.0,0.25247787]
[1743651106249,0.00021456,83651.0,83650.0,0.24355219]
[1743651107114,0.00021456,83651.0,83650.0,0.23583536]
[1743651107317,0.00021456,83651.0,83650.0,0.28343536]
[1743651107541,0.00021456,83651.0,83650.0,0.41835536]
[1743651108702,0.00021456,83651.0,83650.0,0.42728104]
[1743651110315,0.00021456,83651.0,83650.0,0.41835536]
[1743651112544,0.00021456,83651.0,83650.0,0.28343536]
[1743651112792,0.0001686,83665.0,83664.0,0.239051]
[1743651113003,0.0001686,83665.0,83657.0,0.251022]
[1743651113004,0.01216656,83665.0,83657.0,0.23907]
[1743651113211,0.01216656,83665.0,83659.0,0.011953]
[1743651113413,0.01216656,83665.0,83659.0,0.251018]
[1743651113560,0.01216656,83665.0,83660.0,0.011953]
[1743651113766,0.00021456,83665.0,83662.0,0.011952]
[1743651114423,0.00021456,83665.0,83661.0,0.011953]
[1743651114627,0.00021456,83665.0,83663.0,0.00971706]
[1743651114836,0.011952,83664.0,83663.0,0.00971706]
[1743651115798,0.01494012,83664.0,83663.0,0.00971706]
[1743651116001,0.01494012,83664.0,83663.0,0.01718693]
[1743651116002,0.011952,83664.0,83663.0,0.01718693]
[1743651116776,0.011952,83664.0,83663.0,0.01120678]
[1743651117217,0.51819587,83664.0,83663.0,0.01120678]
[1743651117421,0.5152076,83664.0,83663.0,0.01120678]
[1743651118666,0.5152076,83664.0,83663.0,0.00746987]
[1743651118667,0.5634076,83664.0,83663.0,0.00746987]
[1743651119217,0.637521,83658.0,83657.0,0.00373691]
[1743651119466,0.8891966,83658.0,83657.0,0.00373691]
[1743651119848,0.251041,83652.0,83647.0,0.011955]
[1743651120084,0.251041,83652.0,83646.0,0.00598015]
[1743651120085,0.011954,83651.0,83646.0,0.00598015]
[1743651120480,0.011955,83647.0,83646.0,0.00598015]
[1743651120720,0.011954,83650.0,83646.0,0.00598015]
[1743651121449,0.011954,83650.0,83646.0,0.00971571]
[1743651121570,0.011954,83650.0,83647.0,0.01942494]
[1743651121768,0.251051,83648.0,83647.0,0.01942494]
[1743651122899,0.300751,83648.0,83647.0,0.01942494]
[1743651123106,0.687251,83648.0,83647.0,0.02914065]
[1743651123668,0.8040066,83648.0,83647.0,0.02914065]
[1743651124209,0.8040066,83648.0,83647.0,0.01718684]
[1743651124415,0.8040066,83648.0,83647.0,0.01120669]
[1743651125359,0.251069,83642.0,83641.0,0.00747113]
[1743651125584,0.3678246,83642.0,83641.0,0.00747113]
[1743651126743,0.3678246,83642.0,83641.0,0.01120726]
[1743651127767,0.3678246,83642.0,83641.0,0.00373613]
[1743651129958,0.011956,83640.0,83639.0,0.000337]
[1743651131321,0.011956,83640.0,83639.0,0.00407323]
[1743651132893,0.9796116,83640.0,83639.0,1e-07]
[1743651134637,0.684711,83628.0,83627.0,0.000337]
[1743651134831,0.9363866,83628.0,83627.0,0.000337]
[1743651135803,0.9363866,83628.0,83627.0,0.00038296]
[1743651136036,0.9363866,83628.0,83625.0,9.6e-07]
[1743651136037,0.011958,83626.0,83625.0,9.6e-07]
[1743651136237,0.56780374,83626.0,83625.0,9.2e-07]
[1743651136464,0.9794136,83626.0,83625.0,9.2e-07]
[1743651137181,0.98837334,83626.0,83625.0,9.2e-07]
[1743651150028,0.9794136,83626.0,83625.0,9.2e-07]
[1743651150251,0.6783136,83626.0,83625.0,9.2e-07]
[1743651150800,1.0183136,83626.0,83625.0,0.00033792]
[1743651151863,1.04925761,83626.0,83625.0,9.2e-07]
[1743651152037,1.29311689,83626.0,83625.0,9.2e-07]
[1743651152237,1.17637288,83626.0,83625.0,9.2e-07]
[1743651152470,1.14698276,83626.0,83625.0,9.2e-07]
[1743651153901,1.1158136,83626.0,83625.0,9.2e-07]
[1743651158318,1.2249136,83626.0,83625.0,9.2e-07]
[1743651164037,1.2250821,83626.0,83625.0,9.2e-07]
[1743651164236,1.34182611,83626.0,83625.0,9.2e-07]
[1743651164517,1.2250821,83626.0,83625.0,9.2e-07]
[1743651164657,1.2300821,83626.0,83625.0,9.2e-07]
[1743651164890,0.591174,83607.0,83606.0,0.000337]
[1743651165090,1.25752868,83607.0,83606.0,0.00047499]
[1743651165878,1.25752868,83607.0,83606.0,0.00795123]
[1743651167625,1.25752868,83607.0,83606.0,0.00047499]
[1743651168590,1.26924562,83607.0,83606.0,0.00047499]
[1743651179504,1.25752868,83607.0,83606.0,0.00047499]
[1743651180751,1.26933923,83607.0,83606.0,0.00047499]
[1743651183636,1.13433923,83607.0,83606.0,0.00047499]
[1743651183833,1.13433923,83607.0,83606.0,0.04887499]
[1743651183834,0.75459908,83607.0,83606.0,0.04887499]
[1743651184040,0.76655908,83607.0,83606.0,0.04887499]
[1743651184245,0.88331468,83607.0,83606.0,0.04887499]
[1743651184517,0.88331468,83607.0,83606.0,0.00047499]
[1743651192261,0.75459908,83607.0,83606.0,0.04837499]
[1743651192479,0.41459908,83607.0,83606.0,0.10773499]
[1743651192679,0.1091,83618.0,83615.0,0.0479]
[1743651193490,0.1091,83618.0,83617.0,0.011959]
[1743651193662,0.1091,83618.0,83617.0,0.059859]
[1743651194378,0.1091,83618.0,83617.0,0.0479]
[1743651194560,0.1091,83618.0,83617.0,0.06733693]
[1743651194980,0.1011,83618.0,83617.0,0.06733693]
[1743651195189,0.1011,83618.0,83617.0,0.07705508]
[1743651195955,0.1011,83618.0,83617.0,0.08901408]
[1743651196931,0.1011,83618.0,83617.0,0.0830331]
[1743651198013,0.1011,83618.0,83617.0,0.07107099]
[1743651198817,0.1011,83618.0,83617.0,0.18782659]
[1743651199018,0.0001685,83626.0,83624.0,0.297123]
[1743651199223,0.0001685,83626.0,83625.0,0.011958]
[1743651199420,0.0001685,83626.0,83625.0,0.1731136]
[1743651200317,0.0001685,83626.0,83625.0,0.18058842]
[1743651200902,0.0001685,83626.0,83625.0,0.18432559]
[1743651202458,0.0001685,83626.0,83625.0,0.18058842]
[1743651202886,0.250354,83645.0,83637.0,0.011956]
[1743651203080,0.011955,83643.0,83637.0,0.011956]
[1743651203408,0.251068,83643.0,83637.0,0.011956]
[1743651203609,0.251076,83640.0,83634.0,0.251092]
[1743651203834,0.011956,83640.0,83635.0,0.011956]
[1743651203984,0.011956,83640.0,83632.0,0.13496]
[1743651203985,0.011956,83637.0,83632.0,0.13496]
[1743651204323,0.251081,83638.0,83632.0,0.13496]
[1743651204618,0.011956,83638.0,83633.0,0.011957]
[1743651204829,0.239128,83637.0,83632.0,0.13496]
[1743651205040,0.011956,83638.0,83632.0,0.13496]
[1743651205041,0.011957,83633.0,83632.0,0.13496]
[1743651205215,0.011957,83629.0,83625.0,0.06159297]
[1743651205379,0.011957,83628.0,83625.0,0.05187482]
[1743651205599,0.251118,83626.0,83625.0,0.00747482]
[1743651205826,0.251118,83626.0,83623.0,0.13496]
[1743651205827,0.011958,83624.0,83623.0,0.13496]
[1743651206029,0.251125,83624.0,83618.0,0.00373717]
[1743651206663,0.251125,83624.0,83617.0,0.011959]
[1743651206907,0.011958,83623.0,83617.0,0.011959]
[1743651207124,0.011958,83622.0,83616.0,0.00373717]
[1743651207295,0.011959,83617.0,83616.0,0.00373717]
[1743651207474,0.251144,83617.0,83616.0,0.00373717]
[1743651207875,0.251155,83614.0,83607.0,0.300373]
[1743651208333,0.251155,83614.0,83608.0,0.01196]
[1743651209123,0.251155,83614.0,83608.0,0.01209799]
[1743651209727,0.251163,83612.0,83608.0,0.00013799]
[1743651209888,0.01196,83612.0,83608.0,0.00013799]
[1743651210671,0.241115,83614.0,83608.0,0.23934799]
[1743651210874,0.011959,83613.0,83608.0,0.00013799]
[1743651212341,0.241115,83614.0,83608.0,0.25130799]
[1743651213461,0.251161,83612.0,83608.0,0.00013799]
[1743651214783,0.01196,83609.0,83608.0,0.00013799]
[1743651217155,0.01196,83609.0,83608.0,0.00761281]
[1743651218413,0.229166,83610.0,83608.0,0.00761281]
[1743651218957,0.011958,83623.0,83611.0,0.01196]
[1743651219198,0.011959,83617.0,83609.0,0.01196]
[1743651219445,0.011959,83618.0,83613.0,0.251154]
[1743651219685,0.251135,83620.0,83613.0,0.251154]
[1743651220902,0.251135,83620.0,83614.0,0.01943382]
[1743651221415,0.251135,83620.0,83614.0,0.02317099]
[1743651222018,0.251135,83620.0,83615.0,0.00747482]
[1743651223190,0.251143,83618.0,83616.0,0.01121199]
[1743651223412,0.011959,83617.0,83616.0,0.01121199]
[1743651223788,0.058459,83617.0,83616.0,0.01121199]
[1743651223966,0.106959,83617.0,83616.0,0.01121199]
[1743651224374,0.106959,83617.0,83616.0,0.00747482]
[1743651224776,0.10994892,83617.0,83616.0,0.00747482]
[1743651225452,0.01196,83611.0,83609.0,0.00373717]
[1743651225727,0.251165,83611.0,83608.0,0.00047519]
[1743651226054,0.106959,83617.0,83615.0,0.011959]
[1743651226055,0.0485,83617.0,83615.0,0.011959]
[1743651226237,0.011958,83621.0,83615.0,0.011959]
[1743651226455,0.011959,83619.0,83614.0,0.011959]
[1743651226638,0.011959,83619.0,83608.0,0.00047519]
[1743651226639,0.011959,83615.0,83608.0,0.01243519]
[1743651226846,0.251164,83611.0,83609.0,0.00373717]
[1743651227253,0.01196,83610.0,83609.0,0.00373717]
[1743651228052,0.01196,83610.0,83609.0,0.01121172]
[1743651229499,0.01196,83610.0,83609.0,0.02317383]
[1743651229672,0.011958,83622.0,83615.0,0.239189]
[1743651229998,0.011958,83621.0,83615.0,0.011959]
[1743651230417,0.251135,83620.0,83614.0,0.00373717]
[1743651230620,0.251135,83620.0,83616.0,0.00747455]
[1743651230914,0.011959,83619.0,83616.0,0.00747455]
[1743651231088,0.011958,83620.0,83616.0,0.00747455]
[1743651231668,0.0001686,83624.0,83623.0,0.251126]
[1743651232123,0.0001686,83624.0,83621.0,0.239174]
[1743651232473,0.0001686,83624.0,83617.0,0.01943355]
[1743651232823,0.0121266,83624.0,83623.0,0.00373674]
[1743651233033,0.0001686,83624.0,83623.0,0.00373674]
[1743651233574,0.0001686,83624.0,83623.0,0.02316888]
[1743651234278,0.0001686,83624.0,83623.0,0.02914739]
[1743651235656,0.0001686,83624.0,83623.0,0.04409628]
[1743651236538,0.0121266,83624.0,83623.0,0.04409628]
[1743651236741,0.0001686,83624.0,83623.0,0.04409628]
[1743651238130,0.0001686,83624.0,83623.0,0.02914739]
[1743651240774,0.0121266,83624.0,83623.0,0.02914739]
[1743651241174,0.0001686,83624.0,83623.0,0.04110539]
[1743651241493,0.0001686,83624.0,83623.0,0.28027339]
[1743651242085,0.0001686,83624.0,83623.0,0.02914739]
[1743651243233,0.0001686,83624.0,83623.0,0.04409427]
[1743651243837,0.0121266,83624.0,83623.0,0.04409427]
[1743651244331,0.0001686,83624.0,83623.0,0.02914739]
[1743651245063,0.0121266,83624.0,83623.0,0.02914739]
[1743651246911,0.0121266,83624.0,83623.0,0.04409441]
[1743651247111,0.0001686,83624.0,83623.0,0.04409441]
[1743651247710,0.0121266,83624.0,83623.0,0.04409441]
[1743651248354,0.0602162,83624.0,83623.0,0.04409441]
[1743651248541,0.5666718,83624.0,83623.0,0.04409441]
[1743651248704,0.5636822,83624.0,83623.0,0.04409441]
[1743651249080,0.6987222,83624.0,83623.0,0.04409441]
[1743651249278,0.6987222,83624.0,83623.0,0.0171898]
[1743651249709,0.6987222,83624.0,83623.0,0.00747455]
[1743651250708,0.448059,83618.0,83617.0,0.0003372]
[1743651250877,0.5648146,83618.0,83617.0,0.0003372]
[1743651252214,0.8039966,83618.0,83617.0,0.0003372]
[1743651254411,0.687241,83618.0,83617.0,0.0003372]
[1743651255775,0.687241,83618.0,83617.0,0.00781202]
[1743651256030,0.8039966,83618.0,83617.0,0.00781202]
[1743651257366,0.8039966,83618.0,83617.0,0.0003372]
[1743651259644,0.8041652,83618.0,83617.0,0.0003372]
[1743651263642,0.351959,83617.0,83616.0,4e-07]
[1743651263766,0.5163146,83617.0,83616.0,4e-07]
[1743651264898,0.97661368,83617.0,83616.0,4e-07]
[1743651266741,0.97661368,83617.0,83594.0,0.01121439]
[1743651266742,0.011961,83604.0,83599.0,7.9e-07]
[1743651266929,0.399561,83600.0,83599.0,7.9e-07]
[1743651267176,0.5163166,83600.0,83599.0,7.9e-07]
[1743651267974,0.5620166,83600.0,83599.0,7.9e-07]
[1743651268589,2.15245939,83600.0,83599.0,7.9e-07]
[1743651268817,0.688049,83582.0,83581.0,1e-06]
[1743651268963,1.35472368,83582.0,83581.0,1e-06]
[1743651269753,1.36649393,83582.0,83581.0,1e-06]
[1743651270134,1.36649393,83582.0,83581.0,0.00013868]
[1743651279753,1.36420939,83582.0,83581.0,0.00013868]
[1743651284401,1.36420939,83582.0,83581.0,6.8e-07]
[1743651284573,1.4809534,83582.0,83581.0,6.8e-07]
[1743651284773,0.591271,83575.0,83574.0,8.8e-07]
[1743651284969,0.7574266,83575.0,83574.0,8.8e-07]
[1743651287682,0.8044266,83575.0,83574.0,8.8e-07]
[1743651289112,1.21902568,83575.0,83574.0,8.8e-07]
[1743651292857,1.33576969,83575.0,83574.0,8.8e-07]
[1743651293067,0.34,83566.0,83563.0,8e-08]
[1743651293274,0.3867,83563.0,83561.0,2.8e-07]
[1743651293488,0.71105803,83562.0,83561.0,2.8e-07]
[1743651293639,0.7080656,83562.0,83561.0,2.8e-07]
[1743651293998,1.12266468,83562.0,83561.0,2.8e-07]
[1743651295713,1.25770468,83562.0,83561.0,2.8e-07]
[1743651296842,1.26687216,83562.0,83561.0,2.8e-07]
[1743651305588,1.26687216,83562.0,83557.0,0.000337]
[1743651305589,0.591321,83558.0,83557.0,2.8e-07]
[1743651305764,0.7080766,83558.0,83557.0,2.8e-07]
[1743651309540,1.12267568,83558.0,83557.0,2.8e-07]
[1743651313634,0.591339,83552.0,83551.0,2.8e-07]
[1743651313832,0.591391,83535.0,83534.0,0.01122249]
[1743651313945,1.25782568,83535.0,83534.0,0.01122249]
[1743651314144,1.25782568,83535.0,83534.0,0.01168271]
[1743651314573,1.25782568,83535.0,83534.0,0.00420105]
[1743651314793,1.25782568,83535.0,83534.0,0.00046022]
[1743651320482,1.25782568,83535.0,83534.0,0.00062892]
[1743651322585,1.12274568,83535.0,83534.0,0.00062892]
[1743651322744,1.25782568,83535.0,83534.0,0.00062892]
[1743651323122,0.75459908,83535.0,83534.0,0.00062892]
[1743651323328,0.75459908,83535.0,83534.0,0.09622892]
[1743651323534,0.41459908,83535.0,83534.0,0.09622892]
[1743651323732,0.65399308,83545.0,83534.0,0.09622892]
[1743651323932,0.42656808,83545.0,83540.0,0.239403]
[1743651324132,0.01197,83537.0,83534.0,0.09622892]
[1743651324369,0.251387,83536.0,83535.0,0.00748261]
[1743651325034,0.251387,83536.0,83535.0,0.01122391]
[1743651325722,0.01197,83541.0,83535.0,0.01122391]
[1743651325915,0.01197,83542.0,83536.0,0.01197]
[1743651326462,0.01197,83542.0,83537.0,0.01122391]
[1743651326657,0.251373,83541.0,83537.0,0.01122391]
[1743651326978,0.01197,83540.0,83537.0,0.01122391]
[1743651327357,0.011969,83543.0,83537.0,0.25063591]
[1743651327548,0.251367,83543.0,83538.0,0.00748261]
[1743651327760,1.5526,83552.0,83538.0,0.00748261]
[1743651327761,0.34,83551.0,83546.0,0.0477]
[1743651328385,0.351968,83551.0,83546.0,0.0477]
[1743651328584,0.351968,83551.0,83546.0,0.05144024]
[1743651329087,0.351968,83551.0,83547.0,0.00748261]
[1743651329691,0.011969,83549.0,83547.0,0.00748261]
[1743651330388,0.011969,83549.0,83546.0,0.0477]
[1743651330590,0.251352,83548.0,83546.0,0.0477]
[1743651330852,0.34,83555.0,83547.0,0.251355]
[1743651331049,0.011967,83563.0,83550.0,0.011968]
[1743651331226,0.011967,83563.0,83556.0,0.0477]
[1743651331427,0.011967,83559.0,83556.0,0.0477]
[1743651331642,0.011967,83559.0,83556.0,0.05144024]
[1743651332046,0.01258378,83558.0,83556.0,0.05144024]
[1743651332606,0.01258378,83558.0,83556.0,0.29079924]
[1743651332826,0.0001687,83562.0,83560.0,0.011967]
[1743651332967,0.0001687,83562.0,83561.0,0.011967]
[1743651333168,0.0001687,83562.0,83560.0,0.251313]
[1743651333169,0.0001687,83562.0,83560.0,0.011967]
[1743651333571,0.0001687,83562.0,83560.0,0.239346]
[1743651333922,0.0001687,83562.0,83557.0,0.011967]
[1743651334923,0.0001687,83562.0,83561.0,0.011967]
[1743651335128,0.0001687,83562.0,83557.0,0.011967]
[1743651335336,0.239346,83561.0,83556.0,0.06340824]
[1743651335656,0.0001687,83562.0,83557.0,0.251324]
[1743651335836,0.0001687,83562.0,83558.0,0.011967]
[1743651336051,0.0001687,83562.0,83559.0,0.251318]
[1743651336294,0.0001687,83562.0,83560.0,0.011967]
[1743651336526,0.0001687,83562.0,83561.0,0.239346]
[1743651336873,0.0001687,83562.0,83561.0,0.297813]
[1743651337071,0.0001687,83562.0,83561.0,0.0465]
[1743651337525,0.0001687,83562.0,83561.0,0.058467]
[1743651344213,0.0001687,83562.0,83559.0,0.251318]
[1743651344590,0.01096251,83562.0,83560.0,0.011967]
[1743651344748,0.00039098,83561.0,83560.0,0.011967]
[1743651344948,0.01079676,83561.0,83559.0,0.011967]
[1743651345348,0.01079676,83561.0,83559.0,0.251317]
[1743651345666,0.01079676,83561.0,83560.0,0.011967]
[1743651345895,0.24026746,83565.0,83560.0,0.011967]
[1743651346107,0.00899729,83561.0,83559.0,0.011967]
[1743651346254,0.011966,83564.0,83559.0,0.251316]
[1743651346463,0.00899729,83560.0,83559.0,0.251316]
[1743651346663,0.011966,83564.0,83559.0,0.251316]
[1743651346869,0.00900024,83560.0,83559.0,0.011967]
[1743651347257,0.011966,83564.0,83559.0,0.251316]
[1743651347388,0.00900024,83560.0,83559.0,0.251316]
[1743651347836,0.0002961,83560.0,83559.0,0.251316]
[1743651348033,0.00870414,83560.0,83559.0,0.251316]
[1743651348308,0.00900024,83560.0,83559.0,0.251316]
[1743651348525,0.011967,83559.0,83551.0,0.0479]
[1743651348728,0.011968,83553.0,83547.0,0.0001687]
[1743651348880,0.011968,83553.0,83548.0,0.00374024]
[1743651349083,0.00715654,83552.0,83548.0,0.00374024]
[1743651349286,0.011968,83553.0,83548.0,0.00374024]
[1743651349797,0.00715067,83552.0,83548.0,0.25509024]
[1743651350126,0.00715067,83552.0,83548.0,0.25135]
[1743651352162,0.00715067,83552.0,83548.0,0.011969]
[1743651353659,0.00715067,83552.0,83548.0,0.251351]
[1743651353861,0.00715067,83552.0,83551.0,0.011968]
[1743651354075,0.41459908,83574.0,83568.0,0.25129]
[1743651354210,0.011965,83576.0,83566.0,0.011966]
[1743651354211,0.251283,83571.0,83566.0,0.011966]
[1743651354415,0.00596708,83570.0,83565.0,0.011966]
[1743651354614,0.251289,83569.0,83564.0,0.251301]
[1743651355342,0.00596708,83570.0,83565.0,0.011966]
[1743651355538,0.00596708,83570.0,83569.0,0.011966]
[1743651355739,0.0121336,83575.0,83569.0,0.011966]
[1743651356061,0.00595825,83574.0,83569.0,0.011966]
[1743651356638,0.00595825,83574.0,83569.0,0.01944467]
[1743651357044,0.01792325,83574.0,83569.0,0.01944467]
[1743651357301,0.25723225,83574.0,83569.0,0.01944467]
[1743651357883,0.25723225,83574.0,83570.0,0.00374024]
[1743651358198,0.00595825,83574.0,83573.0,0.011965]
[1743651358487,0.0001686,83575.0,83574.0,0.251273]
[1743651358871,0.00623563,83575.0,83574.0,0.251273]
[1743651359045,0.00623563,83575.0,83574.0,0.25875167]
[1743651359250,0.0001686,83575.0,83574.0,0.25875167]
[1743651359812,0.0001686,83575.0,83574.0,0.26249191]
[1743651364117,0.0001686,83575.0,83574.0,0.31199191]
[1743651364838,0.0001686,83575.0,83574.0,0.31797442]
[1743651367696,0.0001686,83575.0,83574.0,0.32706823]
[1743651375330,0.0001686,83575.0,83574.0,0.32108572]
[1743651375530,0.0001686,83575.0,83574.0,0.27158572]
[1743651378654,0.0001686,83575.0,83574.0,0.38834132]
[1743651378822,0.0001686,83575.0,83574.0,0.43414132]
[1743651379220,0.0001686,83575.0,83574.0,0.56914132]
[1743651379722,0.0001686,83582.0,83581.0,0.251252]
[1743651381041,0.0001686,83582.0,83581.0,0.25873067]
[1743651381658,0.0001686,83582.0,83581.0,0.26247091]
[1743651383346,0.0001686,83582.0,83581.0,0.26845148]
[1743651387462,0.0001686,83582.0,83581.0,0.02916348]
[1743651388948,0.0001686,83582.0,83581.0,0.01719948]
[1743651389222,0.01838724,83582.0,83581.0,0.01719948]
[1743651389423,0.0121326,83582.0,83581.0,0.01719948]
[1743651389641,0.0183843,83582.0,83581.0,0.01719948]
[1743651389826,0.1351399,83582.0,83581.0,0.01719948]
[1743651390001,0.1840399,83582.0,83581.0,0.01719948]
[1743651391799,0.1840399,83582.0,83581.0,0.01121891]
[1743651393629,0.93863898,83582.0,83581.0,0.01121891]
[1743651394434,0.98633898,83582.0,83581.0,0.01121891]
[1743651394836,0.98633898,83582.0,83581.0,0.00374024]
[1743651395130,0.011965,83575.0,83574.0,0.01121891]
[1743651395328,0.1758206,83575.0,83574.0,0.01121891]
[1743651395596,0.39347281,83575.0,83574.0,0.01121891]
[1743651395795,0.45353781,83575.0,83574.0,0.00374024]
[1743651396808,0.45946283,83575.0,83574.0,0.00374024]
[1743651397011,0.251289,83569.0,83568.0,0.00374024]
[1743651397211,0.3680446,83569.0,83568.0,0.00374024]
[1743651397422,0.3738121,83569.0,83568.0,0.01121891]
[1743651398074,0.3738121,83569.0,83568.0,0.00747867]
[1743651398417,0.251303,83564.0,83563.0,0.01121891]
[1743651398857,0.011966,83567.0,83563.0,0.01121891]
[1743651399071,0.00033476,83566.0,83563.0,0.02318591]
[1743651399287,0.005,83611.0,83563.0,0.02318591]
[1743651399288,0.049,83585.0,83581.0,0.251252]
[1743651399503,0.011966,83567.0,83555.0,0.239362]
[1743651399711,0.059666,83565.0,83564.0,0.00747867]
[1743651399910,0.2254216,83565.0,83564.0,0.00747867]
[1743651400192,0.591303,83564.0,83563.0,0.00374024]
[1743651400389,0.7546586,83564.0,83563.0,0.00374024]
[1743651400596,0.011967,83563.0,83549.0,0.11835527]
[1743651400837,0.51831492,83563.0,83549.0,0.11835527]
[1743651401048,0.5153226,83563.0,83549.0,0.11835527]
[1743651401243,0.5153226,83563.0,83549.0,0.1108766]
[1743651401800,0.687845,83550.0,83549.0,0.10713636]
[1743651401980,0.8046006,83550.0,83549.0,0.10759658]
[1743651402794,0.44859786,83550.0,83549.0,0.10759658]
[1743651403762,0.56535346,83550.0,83549.0,0.10759658]
[1743651403977,0.56535346,83550.0,83549.0,0.00046022]
[1743651404380,0.97995254,83550.0,83549.0,0.00046022]
[1743651407383,0.99162839,83550.0,83549.0,0.00046022]
[1743651408654,0.97995254,83550.0,83549.0,0.00046022]
[1743651411734,0.9854733,83550.0,83549.0,0.00046022]
[1743651411950,0.93821344,83550.0,83549.0,0.00046022]
[1743651412149,0.01765876,83550.0,83549.0,0.00046022]
[1743651414491,0.00569076,83550.0,83549.0,0.00046022]
[1743651415799,0.00569076,83550.0,83549.0,0.00062872]
[1743651415960,0.01765876,83550.0,83549.0,0.00062872]
[1743651416170,0.00569076,83550.0,83549.0,0.01259772]
[1743651416366,0.00569076,83550.0,83549.0,0.00062872]
[1743651416615,0.011968,83554.0,83549.0,0.00062872]
[1743651417133,0.00022446,83553.0,83549.0,0.00062872]
[1743651417554,0.011968,83554.0,83549.0,0.00062872]
[1743651417731,0.00016835,83552.0,83549.0,0.00062872]
[1743651417946,0.011968,83554.0,83549.0,0.00062872]
[1743651418146,0.00016835,83551.0,83549.0,0.00062872]
[1743651418276,0.011968,83554.0,83549.0,0.00062872]
[1743651418481,0.01213635,83550.0,83549.0,0.00062872]
[1743651418683,0.1769236,83550.0,83549.0,0.00062872]
[1743651418887,0.17706186,83550.0,83549.0,0.00062872]
[1743651419486,0.17701586,83550.0,83549.0,0.00062872]
[1743651420771,0.00013826,83550.0,83549.0,0.24000872]
[1743651420939,0.00013826,83550.0,83549.0,0.25197772]
[1743651421106,0.251331,83555.0,83549.0,0.25197772]
[1743651421302,0.00567843,83550.0,83549.0,0.00062872]
[1743651421516,0.011968,83553.0,83549.0,0.00062872]
[1743651421717,0.00567843,83550.0,83549.0,0.00062872]
[1743651421980,0.011968,83552.0,83549.0,0.00062872]
[1743651422154,0.00567843,83550.0,83549.0,0.00062872]
[1743651422353,0.011968,83552.0,83549.0,0.00062872]
[1743651422549,0.00575457,83550.0,83549.0,0.00062872]
[1743651422752,0.01496015,83550.0,83549.0,0.00062872]
[1743651423070,0.18487032,83550.0,83549.0,0.00062872]
[1743651423485,0.18187817,83550.0,83549.0,0.00062872]
[1743651423929,0.18487059,83550.0,83549.0,0.00062872]
[1743651428534,0.18520779,83550.0,83549.0,0.00062872]
[1743651429652,0.56831537,83550.0,83549.0,0.00436902]
[1743651430027,0.56831537,83550.0,83549.0,0.01185001]
[1743651430295,0.56831537,83550.0,83549.0,0.0108426]
[1743651430914,0.56831537,83550.0,83549.0,0.00748099]
[1743651431119,0.56831537,83550.0,83548.0,0.0001685]
[1743651431120,0.591349,83549.0,83548.0,0.0001685]
[1743651431275,0.7555046,83549.0,83548.0,0.00021807]
[1743651431491,0.76112098,83549.0,83548.0,0.00021807]
[1743651431801,0.81042098,83549.0,83548.0,0.00021807]
[1743651432799,1.22502006,83549.0,83548.0,0.00021807]
[1743651434224,1.36006006,83549.0,83548.0,0.00021807]
[1743651440743,1.36039726,83549.0,83548.0,0.00021807]
[1743651440970,1.22535726,83549.0,83548.0,0.00021807]
[1743651441183,0.88927726,83549.0,83548.0,0.00021807]
[1743651446061,0.87730826,83549.0,83548.0,0.00021807]
[1743651446277,0.76055266,83549.0,83548.0,0.00021807]
[1743651446480,0.42055266,83549.0,83548.0,0.00021807]
[1743651447373,0.42055266,83549.0,83548.0,0.00769836]
[1743651447901,0.42055266,83549.0,83548.0,0.0114385]
[1743651448651,0.43252166,83549.0,83548.0,0.0114385]
[1743651448905,0.43252166,83549.0,83548.0,0.01048346]
[1743651450346,0.01792258,83549.0,83548.0,0.01048346]
[1743651452224,0.00595358,83549.0,83548.0,0.26183546]
[1743651452577,0.0003372,83549.0,83548.0,0.01048346]
[1743651452780,0.00604191,83549.0,83548.0,0.01048346]
[1743651453718,0.00604191,83549.0,83548.0,0.0166375]
[1743651454122,0.01801091,83549.0,83548.0,0.0166375]
[1743651456282,0.01801091,83549.0,83548.0,0.01065206]
[1743651457933,0.00604191,83549.0,83548.0,0.01065206]
[1743651458914,0.01801091,83549.0,83548.0,0.01065206]
[1743651463665,0.00604191,83549.0,83548.0,0.01065206]
[1743651464086,0.00604191,83549.0,83548.0,0.25003506]
[1743651464295,0.00604191,83549.0,83548.0,0.26200406]
[1743651464768,0.00604191,83549.0,83548.0,0.01065206]
[1743651465756,0.00604191,83549.0,83548.0,0.0166375]
[1743651467589,0.00604191,83549.0,83548.0,0.02860572]
[1743651468513,0.01801091,83549.0,83548.0,0.02860572]
[1743651474317,0.01801091,83549.0,83548.0,0.0166375]
[1743651480438,0.56906651,83549.0,83548.0,0.0166375]
[1743651480835,0.98366559,83549.0,83548.0,0.00989418]
[1743651481070,0.98366559,83549.0,83548.0,0.0001686]
[1743651481693,0.01197,83541.0,83540.0,7.4e-07]
[1743651481895,0.80752186,83541.0,83540.0,5.031e-05]
[1743651482193,1.21912768,83541.0,83540.0,5.031e-05]
[1743651482396,1.22477833,83541.0,83540.0,5.031e-05]
[1743651482786,1.22477833,83541.0,83540.0,4.957e-05]
[1743651484961,1.22477833,83541.0,83523.0,0.00542159]
[1743651485188,0.251424,83524.0,83523.0,0.00916259]
[1743651485808,0.25155941,83524.0,83523.0,0.00916259]
[1743651486782,0.00570068,83524.0,83523.0,0.00916259]
[1743651486989,0.01767268,83524.0,83523.0,0.00916259]
[1743651487188,0.02066578,83524.0,83523.0,0.00916259]
[1743651487394,0.13442828,83524.0,83523.0,0.00916259]
[1743651487776,0.13442828,83524.0,83523.0,0.00933119]